bitfinex-derivatives/quotes_ETHF0:USTF0_20250919
["timestamp","ask_amount","ask_price","bid_price","bid_amount"]
[1758286211794,0.7347,4521.8,4521.7,0.39786]
[1758286212998,0.7347,4521.8,4521.7,0.60896]
[1758286219099,0.97475514,4521.8,4521.7,0.60896]
[1758286219595,0.97475514,4521.8,4521.6,0.39788]
[1758286219800,0.56007431,4521.7,4521.5,3.2078]
[1758286220098,0.8509,4521.5,4521.4,0.3979]
[1758286220296,1.09097431,4521.5,4521.4,0.3979]
[1758286220698,1.09097431,4521.5,4521.4,0.609]
[1758286221892,0.56007431,4521.5,4521.4,1.0984]
[1758286222102,0.56035288,4521.5,4521.4,1.0984]
[1758286222503,0.76505288,4521.5,4521.4,4.3062]
[1758286222899,1.09125288,4521.5,4521.4,4.3062]
[1758286223899,1.09125288,4521.5,4521.4,4.0162]
[1758286224904,1.09125288,4521.5,4521.4,4.3062]
[1758286231710,1.09125288,4521.5,4521.4,3.4189]
[1758286232007,1.6144901,4521.5,4521.4,3.6057]
[1758286232609,1.6144901,4521.5,4521.4,0.3979]
[1758286232803,5.6144901,4521.5,4521.1,0.39792]
[1758286233009,0.698,4521.2,4521.1,0.39792]
[1758286233213,1.4615901,4521.2,4521.1,0.39792]
[1758286233409,1.4615901,4521.2,4521.1,0.59872]
[1758286233622,1.4615901,4521.2,4521.1,4.30682]
[1758286234212,0.24035288,4521.2,4521.1,4.30682]
[1758286234410,0.24059781,4521.6,4521.5,0.39789]
[1758286234616,0.2405953,4521.6,4521.5,0.79179]
[1758286234814,0.7315953,4521.6,4521.5,0.79179]
[1758286235010,0.7315953,4521.6,4521.5,1.09899]
[1758286240820,0.5343953,4521.6,4521.5,1.09899]
[1758286241020,0.7315953,4521.6,4521.5,1.09899]
[1758286241221,0.2938,4521.4,4521.3,0.0221]
[1758286241421,0.9385953,4521.4,4521.3,0.42001]
[1758286241619,1.16773379,4521.4,4520.8,0.222]
[1758286241818,0.698,4520.9,4520.8,0.82075]
[1758286242019,0.9385953,4520.9,4520.8,1.32105]
[1758286249435,0.698,4520.9,4520.8,1.32105]
[1758286249636,0.698,4520.9,4520.8,1.01385]
[1758286250232,0.93852206,4520.9,4520.8,1.01385]
[1758286250634,0.93851445,4520.9,4520.8,1.01385]
[1758286250833,0.698,4520.9,4520.8,1.01385]
[1758286251224,0.93850659,4520.9,4520.8,1.01385]
[1758286252037,0.93850659,4520.9,4520.8,0.79185]
[1758286252929,0.698,4520.9,4520.8,0.79185]
[1758286253936,0.93849988,4520.9,4520.8,0.79185]
[1758286255738,0.93849988,4520.9,4520.8,1.09905]
[1758286256238,0.73149988,4520.9,4520.8,1.09905]
[1758286258541,0.93849988,4520.9,4520.8,0.79185]
[1758286261642,0.93849988,4520.9,4520.8,0.59875]
[1758286261844,0.3113,4520.8,4520.6,0.0221]
[1758286262046,0.94929988,4520.7,4520.6,0.0221]
[1758286262448,0.94929988,4520.7,4519.8,0.9951]
[1758286262449,0.7088,4520.1,4520.0,3.42]
[1758286262744,0.7088,4520.1,4520.0,4.32152]
[1758286262947,0.94926525,4520.1,4520.0,4.32152]
[1758286264149,0.7088,4520.1,4520.0,4.32152]
[1758286267244,0.1166,4520.5,4520.4,0.39799]
[1758286267439,0.5141,4520.5,4520.4,0.81829]
[1758286267649,0.75441466,4520.5,4520.4,0.39799]
[1758286267849,1.06571466,4520.5,4520.4,0.39799]
[1758286268544,1.06571466,4520.5,4520.4,0.61019]
[1758286269655,1.06571466,4520.5,4520.4,0.39799]
[1758286269950,0.7088,4520.3,4520.2,0.398]
[1758286270251,0.94911466,4520.3,4520.2,0.398]
[1758286270844,0.94911466,4520.3,4520.2,0.6102]
[1758286271250,0.94911466,4520.3,4520.2,0.8183]
[1758286271453,0.94911466,4520.3,4520.2,1.1137]
[1758286272051,0.75431466,4520.3,4520.2,1.1137]
[1758286272249,0.94911466,4520.3,4520.2,0.8183]
[1758286272451,0.94911466,4520.3,4520.2,1.1137]
[1758286273445,0.222,4520.9,4520.2,1.71071]
[1758286273654,0.514,4520.9,4520.8,1.11365]
[1758286273849,0.75437491,4520.9,4520.8,1.11365]
[1758286276054,0.94917491,4520.9,4520.8,1.11365]
[1758286276858,0.94917491,4520.9,4520.8,0.81825]
[1758286277960,0.94917491,4520.9,4520.8,1.11365]
[1758286279359,0.94917491,4520.9,4520.8,0.39795]
[1758286280457,1.47171581,4520.9,4520.8,0.39795]
[1758286280658,0.94917491,4520.9,4520.8,0.39795]
[1758286280960,1.47170533,4520.9,4520.8,0.39795]
[1758286281354,1.47171833,4520.9,4520.8,0.39795]
[1758286282460,0.94917491,4520.9,4520.8,0.39795]
[1758286283262,1.17117491,4520.9,4520.8,0.39795]
[1758286283561,1.69375118,4520.9,4520.8,0.39795]
[1758286284561,1.69375118,4520.9,4520.8,0.61015]
[1758286285464,1.69375118,4520.9,4520.8,0.39795]
[1758286287064,0.7088,4520.8,4520.7,0.39796]
[1758286287364,1.47184385,4520.8,4520.7,0.39796]
[1758286290560,1.47184385,4520.8,4520.6,0.0221]
[1758286290561,1.69304385,4520.8,4520.6,0.0221]
[1758286290765,1.44284385,4520.7,4520.6,0.0221]
[1758286290965,1.44284385,4520.7,4520.6,0.42007]
[1758286291165,1.44284385,4520.7,4520.6,0.39797]
[1758286292163,0.504,4520.5,4520.4,0.39798]
[1758286292364,1.03597491,4520.5,4520.4,0.39798]
[1758286292560,1.55864385,4520.5,4520.4,0.39798]
[1758286299774,1.55864385,4520.5,4520.2,0.4201]
[1758286299978,0.6798,4520.3,4520.2,0.4201]
[1758286300278,0.92017491,4520.3,4520.2,0.398]
[1758286300867,1.45017863,4520.3,4520.2,0.398]
[1758286302681,1.45017863,4520.3,4520.2,0.2082]
[1758286304386,0.24794362,4520.3,4520.2,1.12861]
[1758286304894,0.92774362,4520.3,4520.2,0.60621]
[1758286305088,0.6798,4520.2,4520.1,0.39802]
[1758286305288,0.92774362,4520.2,4520.1,0.39802]
[1758286305594,0.92774362,4520.2,4520.1,0.60622]
[1758286307097,0.92774362,4520.2,4520.1,0.81162]
[1758286307397,0.92774362,4520.2,4520.1,1.12862]
[1758286309095,0.92774362,4520.2,4520.1,0.81162]
[1758286312202,0.92774362,4520.2,4520.1,1.12862]
[1758286313496,0.92774362,4520.2,4520.1,0.81162]
[1758286317601,0.92774362,4520.2,4520.1,0.60622]
[1758286317809,0.6798,4520.1,4520.0,0.0221]
[1758286318103,0.1158,4520.0,4519.8,0.39804]
[1758286318308,1.45537503,4519.9,4519.8,0.39804]
[1758286321502,1.15927503,4519.9,4519.6,0.39806]
[1758286321804,0.6965,4519.3,4519.2,0.5955]
[1758286322113,0.94444362,4519.3,4519.2,0.5955]
[1758286323402,0.94450523,4519.3,4519.2,0.5955]
[1758286326098,0.94450523,4519.3,4519.2,1.0977]
[1758286326301,0.54000523,4519.3,4519.2,1.0977]
[1758286327112,0.74220523,4519.3,4519.2,1.0977]
[1758286328413,0.54000523,4519.3,4519.2,1.0977]
[1758286329315,0.292,4519.3,4519.2,1.0977]
[1758286330409,0.4942,4519.3,4519.2,1.0977]
[1758286336110,0.6965,4519.3,4519.2,1.0977]
[1758286336316,0.6965,4519.3,4519.2,0.7893]
[1758286337019,0.6965,4519.3,4519.2,1.0977]
[1758286338111,0.6965,4519.3,4519.2,4.3055]
[1758286338316,0.94124356,4519.3,4519.2,4.3055]
[1758286339525,0.6965,4519.3,4519.2,4.3055]
[1758286339819,0.4942,4519.3,4519.2,4.3055]
[1758286340120,0.73904546,4519.3,4519.2,4.3055]
[1758286343826,0.94134546,4519.3,4519.2,4.3055]
[1758286344126,0.94134546,4519.3,4519.2,3.9971]
[1758286345025,0.94134546,4519.3,4519.2,0.7893]
[1758286345225,0.94134546,4519.3,4519.2,0.3981]
[1758286345525,0.94134546,4519.3,4519.2,0.5955]
[1758286347425,1.46761416,4519.3,4519.2,0.5955]
[1758286348230,1.46761416,4519.3,4519.2,1.088]
[1758286348431,0.24484546,4519.3,4519.2,4.2958]
[1758286349929,0.55164546,4519.3,4519.2,4.2958]
[1758286350427,0.76124546,4519.3,4519.2,4.2958]
[1758286351029,0.76180534,4519.3,4519.2,4.2958]
[1758286352026,0.24540534,4519.3,4519.2,4.51708]
[1758286352629,0.3068,4520.0,4519.9,1.11844]
[1758286352823,0.55217604,4520.0,4519.9,4.32624]
[1758286354622,0.76177604,4520.0,4519.9,4.32624]
[1758286355026,0.7616115,4520.0,4519.9,4.32624]
[1758286355227,0.8892115,4520.0,4519.9,4.32624]
[1758286357140,0.5520115,4520.0,4519.9,4.32624]
[1758286358533,0.2452115,4520.0,4519.9,4.32624]
[1758286358940,0.3068,4520.3,4520.2,1.11841]
[1758286359234,0.76144448,4520.3,4520.2,1.11841]
[1758286360231,0.97484448,4520.3,4520.2,1.11841]
[1758286360639,0.97484448,4520.3,4520.2,0.81971]
[1758286362044,0.97484448,4520.3,4520.2,0.39801]
[1758286362743,0.97484448,4520.3,4520.2,0.61211]
[1758286366145,0.97484448,4520.3,4520.2,1.11841]
[1758286366449,0.76144448,4520.3,4520.2,1.11841]
[1758286366843,0.55184448,4520.3,4520.2,1.11841]
[1758286367240,0.24504448,4520.3,4520.2,1.33963999]
[1758286367443,0.6443,4521.0,4520.9,1.11835]
[1758286367644,0.88652403,4521.0,4520.9,1.11835]
[1758286368850,0.75862403,4521.0,4520.9,1.11835]
[1758286369754,0.24222403,4521.0,4520.9,1.11835]
[1758286370852,0.5164,4521.3,4521.2,1.11832]
[1758286371154,0.5164,4521.3,4521.2,4.32612]
[1758286371155,0.7584162,4521.3,4521.2,4.32612]
[1758286374155,0.9718162,4521.3,4521.2,4.32612]
[1758286378057,0.9718162,4521.3,4521.2,1.11832]
[1758286381455,0.97172431,4521.3,4521.2,1.11832]
[1758286385360,5.19290432,4521.3,4521.0,0.0221]
[1758286385569,0.7093,4521.1,4521.0,0.0221]
[1758286385759,1.4737564,4521.1,4521.0,0.0221]
[1758286385961,0.7093,4519.8,4519.7,3.80176]
[1758286386155,0.9513032,4519.8,4519.7,3.80176]
[1758286386356,0.9513032,4519.8,4519.7,0.1959]
[1758286386562,0.7093,4519.2,4519.1,3.80181]
[1758286387458,0.7093,4519.2,4519.1,4.31691]
[1758286395461,0.7093,4519.2,4519.1,4.01181]
[1758286396667,0.4307,4519.5,4519.4,1.10908]
[1758286396868,0.4307,4519.8,4519.7,1.10906]
[1758286397370,0.2994,4519.8,4519.7,1.10906]
[1758286397567,0.2994,4520.1,4520.0,0.80393]
[1758286397873,0.2994,4520.5,4520.4,1.10899]
[1758286398463,0.5081,4520.5,4520.4,1.10899]
[1758286398966,0.6258,4520.5,4520.4,1.10899]
[1758286399168,0.827,4520.5,4520.4,1.10899]
[1758286400667,0.827,4520.5,4520.4,0.80389]
[1758286403173,1.06996837,4520.5,4520.4,0.80389]
[1758286404271,0.2994,4520.4,4520.1,3.2078]
[1758286404473,0.3264,4519.5,4519.4,0.4059]
[1758286404677,0.827,4519.5,4519.4,0.80398]
[1758286404879,0.827,4519.5,4519.4,1.10908]
[1758286405466,0.827,4519.5,4519.4,0.80398]
[1758286405778,0.2994,4519.4,4519.2,3.2078]
[1758286406077,0.7093,4519.4,4519.3,0.1959]
[1758286406279,0.7093,4519.4,4519.3,0.59399]
[1758286407278,0.95244117,4519.4,4519.3,0.59399]
[1758286407672,0.7093,4519.3,4519.2,3.2078]
[1758286407979,0.827,4519.0,4518.9,0.0221]
[1758286408271,1.07014117,4519.0,4518.8,0.39813]
[1758286408476,0.93204117,4518.9,4518.8,0.1935]
[1758286409774,0.93203671,4518.9,4518.8,0.1935]
[1758286413075,0.6889,4518.9,4518.8,0.1935]
[1758286414675,0.93222344,4518.9,4518.8,0.1935]
[1758286414886,0.6889,4518.9,4518.8,0.1935]
[1758286415383,0.93233268,4518.9,4518.8,0.1935]
[1758286417388,0.2998,4518.8,4518.6,3.2299]
[1758286417580,0.3891,4518.7,4518.6,3.2299]
[1758286417883,0.6889,4518.7,4518.6,3.2078]
[1758286418076,0.1259,4518.5,4518.0,3.2078]
[1758286418280,0.6889,4518.1,4518.0,3.4013]
[1758286418481,0.6889,4518.1,4518.0,4.0109]
[1758286418674,0.6889,4518.1,4518.0,4.3248]
[1758286419585,0.1962,4518.4,4518.3,0.60958]
[1758286419886,0.5068,4519.0,4518.9,0.1935]
[1758286420082,0.74933825,4519.0,4518.9,1.11692]
[1758286420286,0.1962,4519.4,4519.3,0.71199]
[1758286420483,0.54236998,4519.4,4519.3,1.11689]
[1758286420679,0.496,4519.4,4519.3,1.11689]
[1758286423487,0.2998,4519.4,4519.3,1.11689]
[1758286423682,0.2998,4519.7,4519.6,1.11686]
[1758286424091,0.496,4519.7,4519.6,1.11686]
[1758286424287,0.496,4519.7,4519.6,0.7188]
[1758286424893,0.6889,4519.7,4519.6,0.7188]
[1758286425087,0.1259,4519.5,4519.1,0.0221]
[1758286425285,0.6889,4519.2,4519.1,0.0221]
[1758286425586,0.1259,4519.0,4518.9,0.39812]
[1758286425791,0.8148,4519.0,4518.9,0.59162]
[1758286426686,0.8148,4519.0,4518.9,0.80302]
[1758286427186,0.8148,4519.0,4518.9,1.11692]
[1758286429794,0.496,4519.3,4519.2,0.7188]
[1758286430095,0.496,4519.7,4519.6,0.7188]
[1758286430288,0.73863982,4519.7,4519.6,0.7188]
[1758286430689,0.93153982,4519.7,4519.6,0.7188]
[1758286430995,0.93153982,4519.7,4519.6,1.11686]
[1758286431191,1.45354591,4519.7,4519.6,1.11686]
[1758286431397,0.93153982,4519.7,4519.6,1.11686]
[1758286431689,0.2998,4520.0,4519.6,3.9266]
[1758286431895,0.6889,4520.9,4520.8,0.1935]
[1758286432095,1.67548511,4520.9,4520.8,0.1935]
[1758286432598,1.37568511,4520.9,4520.5,0.39798]
[1758286432790,0.3891,4520.6,4520.5,0.59148]
[1758286432990,0.93161071,4520.6,4520.5,0.59148]
[1758286435097,1.45342099,4520.6,4520.5,0.59148]
[1758286435294,1.45342099,4520.6,4520.5,0.80288]
[1758286435597,1.45342099,4520.6,4520.5,1.11678]
[1758286436197,0.93161071,4520.6,4520.5,1.11678]
[1758286436398,0.73871071,4520.6,4520.5,1.11678]
[1758286436599,0.93161071,4520.6,4520.5,1.11678]
[1758286436802,0.93161071,4520.6,4520.5,0.80288]
[1758286437697,0.54251071,4520.6,4520.5,0.80288]
[1758286437902,0.2998,4521.1,4521.0,1.12784]
[1758286438094,0.2998,4521.1,4521.0,4.33564]
[1758286438495,0.5047,4521.1,4521.0,4.33564]
[1758286439203,0.4967,4521.1,4521.0,4.33564]
[1758286441618,0.7091,4521.1,4521.0,4.02594]
[1758286442223,0.7091,4521.1,4521.0,4.32004]
[1758286443622,0.7091,4521.1,4521.0,4.02594]
[1758286444922,0.7091,4521.1,4521.0,4.32004]
[1758286445714,0.1259,4521.5,4521.1,0.2941]
[1758286445924,0.2997,4521.4,4521.3,1.10191]
[1758286446124,0.5217,4521.8,4521.7,0.704]
[1758286446320,1.23897014,4521.8,4521.7,0.704]
[1758286447429,0.7186,4521.8,4521.7,0.704]
[1758286447825,0.7186,4521.8,4521.7,1.10188]
[1758286448221,0.7186,4521.8,4521.7,0.704]
[1758286448621,0.931,4521.8,4521.7,0.4099]
[1758286449128,0.931,4521.8,4521.7,0.2121]
[1758286449922,1.16965236,4521.8,4521.7,0.2121]
[1758286450122,1.69020529,4521.8,4521.5,0.41999]
[1758286450317,0.709,4521.6,4521.5,0.63209]
[1758286450524,0.94765236,4521.6,4521.5,0.63209]
[1758286450722,0.94765236,4521.6,4521.5,0.60999]
[1758286451130,0.94765236,4521.6,4521.5,0.2121]
[1758286451530,0.1969,4521.1,4521.0,3.4199]
[1758286451725,0.709,4521.1,4521.0,3.81784]
[1758286452028,0.709,4521.1,4521.0,4.30974]
[1758286452229,0.709,4521.1,4521.0,3.9118]
[1758286455233,0.94776751,4521.1,4521.0,3.9118]
[1758286456433,0.1969,4520.9,4520.8,0.0221]
[1758286456734,0.94776751,4520.9,4520.8,0.0221]
[1758286456935,1.46905275,4520.9,4520.8,0.0221]
[1758286457338,0.1244,4520.5,4520.4,3.2078]
[1758286457532,1.07216751,4520.5,4520.4,3.4199]
[1758286460032,1.07216751,4520.5,4520.4,4.01569]
[1758286460234,1.07216751,4520.5,4520.4,3.9118]
[1758286460835,1.07216751,4520.5,4520.4,0.704]
[1758286461031,1.07216751,4520.5,4520.4,0.4099]
[1758286461842,1.07216751,4520.5,4520.4,0.704]
[1758286462943,1.07216751,4520.5,4520.4,1.10199]
[1758286463743,1.07216751,4520.5,4520.4,0.704]
[1758286467244,1.07289361,4520.5,4520.4,0.704]
[1758286470641,1.07289361,4520.5,4520.4,1.10199]
[1758286470841,0.53919361,4520.5,4520.4,1.10199]
[1758286471145,0.23949361,4520.5,4520.4,1.10199]
[1758286471842,0.23949361,4520.5,4520.3,3.2078]
[1758286471843,0.2933,4520.9,4520.8,1.09576]
[1758286472044,0.23944234,4520.9,4520.8,4.30356]
[1758286472349,0.2933,4521.2,4520.8,4.30356]
[1758286472350,0.2933,4521.2,4521.1,0.6978]
[1758286472645,0.73833317,4521.2,4521.1,0.6978]
[1758286473949,0.94913317,4521.2,4521.1,0.6978]
[1758286475351,0.9491326,4521.2,4521.1,0.6978]
[1758286476254,1.47166541,4521.2,4521.1,0.6978]
[1758286479352,1.47166541,4521.2,4521.1,0.3953]
[1758286479551,1.47166541,4521.2,4521.1,0.79323]
[1758286481546,1.47166541,4521.2,4521.1,0.39793]
[1758286482951,1.47166541,4521.2,4521.1,0.59253]
[1758286484253,0.2933,4521.1,4520.8,3.2078]
[1758286484453,0.7097,4520.9,4520.8,3.60576]
[1758286484654,1.47166541,4520.9,4520.8,3.60576]
[1758286484855,1.47166541,4520.9,4520.8,3.2078]
[1758286485056,1.47166541,4520.9,4520.8,3.4024]
[1758286485658,1.47166541,4520.9,4520.8,3.2078]
[1758286487568,1.47166541,4520.9,4520.6,0.0221]
[1758286487758,1.47166541,4520.8,4520.7,0.1946]
[1758286488264,1.47166541,4520.8,4520.7,0.59256]
[1758286488966,1.47166541,4520.8,4520.7,1.09576]
[1758286489665,1.47166541,4520.8,4520.7,0.3953]
[1758286490967,0.7383326,4520.8,4520.7,1.09577]
[1758286491963,0.9491326,4520.8,4520.7,1.09577]
[1758286497466,0.9491326,4520.8,4520.7,0.3953]
[1758286498368,1.47214898,4520.8,4520.7,0.3953]
[1758286499170,1.47214898,4520.8,4520.7,0.1946]
[1758286499369,1.47214898,4520.8,4520.7,0.59257]
[1758286499670,1.47214898,4520.8,4520.7,1.08397]
[1758286499871,0.2394326,4520.8,4520.7,1.08397]
[1758286500063,0.5093,4521.4,4521.3,0.3886]
[1758286500265,1.27772965,4521.4,4521.3,0.6871]
[1758286500465,1.47192965,4521.4,4521.3,0.3886]
[1758286501466,1.47192965,4521.4,4521.3,0.1957]
[1758286501968,0.1257,4521.0,4520.9,3.2078]
[1758286502173,1.07448219,4521.0,4520.9,3.4035]
[1758286502373,1.59762965,4521.0,4520.9,3.4035]
[1758286502672,1.59762965,4521.0,4520.9,3.2078]
[1758286503773,1.59762965,4521.0,4520.9,3.4035]
[1758286505672,1.5977456,4521.0,4520.9,3.4035]
[1758286505873,1.5977456,4521.0,4520.9,0.1957]
[1758286508478,1.2886456,4521.0,4520.9,0.1957]
[1758286509077,1.5977456,4521.0,4520.9,0.1957]
[1758286509975,1.5977456,4521.0,4520.9,0.59365]
[1758286510975,1.2778456,4521.0,4520.9,4.29285]
[1758286511173,0.7685456,4521.0,4520.9,4.29285]
[1758286511373,0.3091,4521.5,4521.4,1.085]
[1758286511574,0.55406055,4521.5,4521.4,4.2928]
[1758286511878,0.75426055,4521.5,4521.4,4.2928]
[1758286513880,0.55406055,4521.5,4521.4,4.2928]
[1758286514080,0.24496055,4521.5,4521.4,4.2928]
[1758286517280,0.3091,4521.8,4521.7,0.78648]
[1758286517478,0.55364131,4521.8,4521.7,1.08498]
[1758286519380,0.3091,4521.8,4521.7,1.08498]
[1758286522383,0.7035,4521.8,4521.7,1.08498]
[1758286530094,0.94778192,4521.8,4521.7,0.78648]
[1758286533096,0.7035,4521.8,4521.7,0.78648]
[1758286533396,0.7035,4521.8,4521.7,1.08568]
[1758286533596,0.7035,4521.8,4521.7,0.78648]
[1758286534693,0.94787748,4521.8,4521.7,0.78648]
[1758286534898,0.7035,4521.8,4521.7,0.78648]
[1758286535498,0.94791764,4521.8,4521.7,0.78648]
[1758286539601,0.75371764,4521.8,4521.7,1.08568]
[1758286539895,0.55191764,4521.8,4521.7,1.08568]
[1758286540100,0.95401764,4521.8,4521.7,1.08568]
[1758286542200,1.17003869,4521.8,4521.5,0.0221]
[1758286542396,0.4021,4521.6,4521.5,0.42001]
[1758286542601,1.47756398,4521.6,4521.5,0.42001]
[1758286542899,1.47756398,4521.6,4521.5,0.39791]
[1758286544302,0.8302,4521.5,4521.4,3.60571]
[1758286544507,1.07461764,4521.5,4521.4,3.2078]
[1758286544996,1.51178938,4521.5,4520.9,3.2078]
[1758286545303,0.7096,4520.6,4520.5,0.39799]
[1758286545497,0.95401764,4520.6,4520.5,0.39799]
[1758286545697,0.7096,4520.4,4520.3,3.60581]
[1758286545901,0.95401764,4520.4,4520.3,3.2078]
[1758286547196,0.95401764,4520.4,4520.3,3.4201]
[1758286547397,0.95401764,4520.4,4520.3,3.6261]
[1758286548404,0.95401764,4520.4,4520.3,0.4183]
[1758286548602,0.95401764,4520.4,4520.3,3.6261]
[1758286550003,0.95401764,4520.4,4520.3,3.9253]
[1758286550503,0.7096,4520.4,4520.3,3.9253]
[1758286557710,0.7096,4520.4,4520.3,4.32331]
[1758286559510,0.7096,4520.4,4520.3,4.02411]
[1758286560216,0.7096,4520.4,4520.3,3.81811]
[1758286560412,0.93082001,4520.4,4520.1,0.0221]
[1758286560714,0.22123,4520.3,4520.1,0.0221]
[1758286560915,0.7125,4520.2,4520.1,0.0221]
[1758286561314,0.2898,4520.1,4520.0,0.39804]
[1758286561512,0.7125,4520.1,4520.0,0.39804]
[1758286562416,0.7125,4520.1,4519.9,0.39805]
[1758286562616,0.7125,4520.1,4520.0,0.39804]
[1758286565414,0.7125,4520.1,4520.0,0.59254]
[1758286565816,0.7125,4520.1,4520.0,0.1945]
[1758286566217,0.7125,4520.1,4520.0,0.59254]
[1758286566613,0.7125,4520.1,4520.0,0.1945]
[1758286566813,0.7125,4520.1,4519.8,3.2299]
[1758286567016,0.7125,4519.9,4519.8,3.4244]
[1758286567421,0.7125,4519.9,4519.8,3.80036]
[1758286567619,0.7125,4519.9,4519.8,4.00126]
[1758286567821,0.7125,4519.9,4519.8,4.30616]
[1758286569616,0.7125,4519.9,4519.8,3.9081]
[1758286569817,0.7125,4519.9,4519.8,4.30616]
[1758286571019,0.7125,4519.9,4519.8,3.9081]
[1758286571220,0.96179264,4519.9,4519.8,4.30616]
[1758286572425,0.75329264,4519.9,4519.8,4.30616]
[1758286572627,0.53909264,4519.9,4519.8,4.30616]
[1758286572821,0.75329264,4519.9,4519.8,4.30616]
[1758286577232,0.53909264,4519.9,4519.8,4.30616]
[1758286578824,0.96179264,4519.9,4519.8,3.6032]
[1758286579023,0.96179264,4519.9,4519.8,4.00126]
[1758286579632,0.96179264,4519.9,4519.8,3.6032]
[1758286580432,0.96179264,4519.9,4519.8,0.3954]
[1758286580628,1.48579765,4519.9,4519.8,0.79346]
[1758286580933,0.96222363,4519.9,4519.8,0.79346]
[1758286581232,0.96222363,4519.9,4519.8,0.3954]
[1758286581432,1.48579847,4519.9,4519.6,0.0221]
[1758286581633,0.4227,4519.7,4519.6,0.0221]
[1758286581934,1.48579847,4519.7,4519.3,3.2078]
[1758286582129,0.8305,4519.5,4519.4,1.09839]
[1758286582334,0.75372363,4519.5,4519.4,1.09839]
[1758286582835,0.87172363,4519.5,4519.4,1.09839]
[1758286583035,1.08022363,4519.5,4519.4,1.09839]
[1758286584632,1.08011865,4519.5,4519.4,1.09839]
[1758286584834,0.53941865,4519.5,4519.4,1.09839]
[1758286585338,0.75361865,4519.5,4519.4,1.09839]
[1758286585534,0.96211865,4519.5,4519.4,0.70299]
[1758286585734,0.7125,4519.3,4518.2,3.2078]
[1758286585941,0.2142,4518.3,4518.2,3.60599]
[1758286586134,0.96211865,4518.3,4518.2,3.60599]
[1758286586334,0.96211865,4518.3,4518.2,3.2078]
[1758286586938,0.118,4518.0,4517.7,3.2078]
[1758286587237,0.7125,4517.8,4517.7,3.60604]
[1758286588032,0.96172168,4517.8,4517.7,3.60604]
[1758286588243,0.7125,4517.8,4517.7,3.80054]
[1758286588941,0.7125,4517.8,4517.7,4.00144]
[1758286589741,0.7125,4517.8,4517.7,4.31454]
[1758286590852,0.7125,4517.8,4517.7,4.00144]
[1758286591151,0.7125,4517.8,4517.7,4.31454]
[1758286591539,0.504,4517.8,4517.7,4.31454]
[1758286591744,3.5267,4518.5,4518.4,0.1991]
[1758286592046,0.98696449,4518.5,4518.4,0.1991]
[1758286592243,0.98696449,4518.5,4518.0,0.39821]
[1758286592449,0.98696449,4518.5,4517.7,3.2078]
[1758286592450,0.5149,4517.8,4517.7,4.31134]
[1758286592745,0.314,4517.8,4517.7,4.31134]
[1758286592950,0.5149,4518.4,4518.3,1.10348]
[1758286593148,0.76350633,4518.4,4518.3,1.10348]
[1758286593349,0.98650633,4518.4,4518.3,1.10348]
[1758286594751,0.76350633,4518.4,4518.3,1.10348]
[1758286594952,0.98650633,4518.4,4518.3,1.10348]
[1758286595649,0.56260633,4518.4,4518.3,1.10348]
[1758286595855,0.223,4518.6,4518.5,0.39817]
[1758286596046,0.537,4518.6,4518.5,1.10347]
[1758286596247,0.7379,4518.6,4518.5,1.10347]
[1758286596648,0.314,4518.6,4518.5,1.10347]
[1758286596950,0.5149,4519.0,4518.9,1.10344]
[1758286597249,3.2078,4519.6,4518.9,0.3922]
[1758286597557,0.24852696,4519.4,4519.3,1.1034]
[1758286597746,0.537,4519.5,4519.4,0.3131]
[1758286597948,0.24850695,4519.5,4519.4,0.7053]
[1758286598141,3.2078,4519.6,4519.5,0.59718]
[1758286598348,3.45633086,4519.6,4519.5,1.10338]
[1758286598549,3.77033086,4519.6,4519.5,1.10338]
[1758286598750,3.97123086,4519.6,4519.5,1.10338]
[1758286598952,0.3973,4519.3,4519.2,0.3981]
[1758286599153,0.7113,4519.3,4519.2,1.1034]
[1758286599354,0.314,4519.3,4519.2,1.1034]
[1758286601360,0.5149,4519.3,4519.2,1.1034]
[1758286603959,0.314,4519.3,4519.2,1.1034]
[1758286604253,0.118,4520.0,4519.0,3.2078]
[1758286604254,0.5149,4519.9,4519.8,0.39805]
[1758286604452,0.78138341,4519.9,4519.8,1.10335]
[1758286604848,0.55838341,4519.9,4519.8,1.10335]
[1758286605163,0.78138341,4519.9,4519.8,1.10335]
[1758286605758,0.98228341,4519.9,4519.8,1.10335]
[1758286608962,0.55838341,4519.9,4519.8,1.10335]
[1758286609163,0.75928341,4519.9,4519.8,1.10335]
[1758286609659,0.95568341,4519.9,4519.8,0.3922]
[1758286609860,0.314,4519.8,4519.7,0.39807]
[1758286610066,0.7113,4519.8,4519.7,0.59717]
[1758286612160,0.8293,4519.5,4519.4,0.39808]
[1758286612363,0.8293,4519.5,4519.4,0.59718]
[1758286614070,0.8293,4519.5,4519.4,1.10338]
[1758286614565,0.5149,4519.5,4519.4,1.10338]
[1758286617270,0.8293,4519.5,4519.4,0.79029]
[1758286618573,0.8293,4519.5,4519.4,1.09979]
[1758286620267,0.8293,4519.5,4519.4,0.79029]
[1758286621362,1.07411618,4519.5,4519.4,0.79029]
[1758286624471,1.07411618,4519.5,4519.4,1.09979]
[1758286624969,1.07411618,4519.5,4519.4,0.79029]
[1758286626267,1.07411618,4519.5,4519.4,1.09979]
[1758286626668,0.75971618,4519.5,4519.4,1.09979]
[1758286626972,0.24481618,4519.5,4519.4,1.09979]
[1758286627172,0.24481618,4519.5,4519.4,1.32106]
[1758286627768,0.24481618,4519.5,4519.4,1.09979]
[1758286631473,0.56361618,4519.5,4519.4,1.09979]
[1758286636679,1.10311618,4519.5,4519.4,0.79029]
[1758286636982,1.10311618,4519.5,4519.4,0.39809]
[1758286638477,1.10531213,4519.5,4519.4,0.39809]
[1758286640483,0.8583,4519.5,4519.4,0.39809]
[1758286640683,1.10530986,4519.5,4519.4,0.39809]